Workbook

Sheet Progress (hidden)
A1: 2023-06-05 | C1: 2023-06-06 | D1: 2023-06-07 | E1: 2023-06-08 | F1: 2023-06-09 | G1: 2023-06-10 | H1: 2023-06-11 | I1: 2023-06-12 | J1: 2023-06-13 | K1: 2023-06-14 | L1: 2023-06-15 | M1: 2023-06-16
A2: =A1 -> 2023-06-05 | C2: =C1 -> 2023-06-06 | D2: 2023-06-07 | E2: 2023-06-08 | F2: 2023-06-09 | G2: 2023-06-10 | H2: 2023-06-11 | I2: 2023-06-12 | J2: 2023-06-13 | K2: 2023-06-14 | L2: 2023-06-15 | M2: 2023-06-16
A3: Nội dung | B3: Ngày thực hiện
A4: Chạy giá costing cuối tháng | B4: Cuối tháng (31/5) | C4: Chạy thử các lệnh đóng sổ | G4: Off | H4: Off | I4: Closing T1 | J4: Closing T2 | K4: Closing T3 | L4: Closing T4 | M4: Bay về BN
A5: Post chứng từ lên GL | C5: Reconcile 152 | G5: Off | H5: Off
A6: post batch tiền mặt | G6: Off | H6: Off
A7: revaluation tỷ giá | B7: Sau khi post batch tiền | G7: Off | H7: Off
A8: post ar, ap | G8: Off | H8: Off
A9: revaluation ar, ap | B9: Sau khi post ar, ap | G9: Off | H9: Off
G10: Off | H10: Off

Sheet 242
I1: 2023-06-30
P2: **Copy value last yearend - Acc YTD 31/12
A3: Inv No. | B3: Inv Date | C3: Contract | D3: Other Doc. | E3: System Desc | F3: Debit | G3: Credit | H3: Dept | I3: Amt | J3: Item Desc | K3: Begin date | L3: End date | M3: Org Amt | N3: Dur (M) | O3: Per Month | P3: Acc last year | Q3: Acc YTD | R3: Residual | S3: =DATE(YEAR(I1),1,31) -> 2023-01-31 | T3: =EOMONTH(S3,1) -> 2023-02-28 | U3: =EOMONTH(T3,1) -> 2023-03-31 | V3: 2023-04-30 | W3: 2023-05-31 | X3: 2023-06-30 | Y3: 2023-07-31 | Z3: 2023-08-31 | AA3: =EOMONTH(Z3,1) -> 2023-09-30 | AB3: 2023-10-31 | AC3: 2023-11-30 | AD3: 2023-12-31
F4: 642 | G4: 242 | H4: FIN | I4: =SUM(($S$3:$AD$3=$I$1)*$S4:$AD4) -> 14285000 | J4: A | K4: 2023-02-05 | L4: 2023-09-04 | M4: 100000000 | N4: =DATEDIF(K4,L4,"m")+1 -> 7 | O4: =ROUNDDOWN(M4/N4,-3) -> 14285000 | P4: 0 | Q4: =SUMIFS($S4:$AD4,$S$3:$AD$3,"<="&$I$1)+P4 -> 69384000 | R4: =M4-Q4 -> 30616000 | S4: =IF(Dateinmonth($L4,S$3)=1,$M4-$P4-SUMIFS($S4:$AD4,$S$3:$AD$3,"<>"&EOMONTH($L4,0)),IF(Dateinmonth($K4,S$3)=1,ROUNDDOWN($O4*(DAY(S$3)-DAY($K4)+1)/DAY(S$3),-3),IF(Dateinrange($K4,$L4,S$3)=1,$O4,0))) -> 0 | T4: =IF(Dateinmonth($L4,T$3)=1,$M4-$P4-SUMIFS($S4:$AD4,$S$3:$AD$3,"<>"&EOMONTH($L4,0)),IF(Dateinmonth($K4,T$3)=1,ROUNDDOWN($O4*(DAY(T$3)-DAY($K4)+1)/DAY(T$3),-3),IF(Dateinrange($K4,$L4,T$3)=1,$O4,0))) -> 12244000 | U4: =IF(Dateinmonth($L4,U$3)=1,$M4-$P4-SUMIFS($S4:$AD4,$S$3:$AD$3,"<>"&EOMONTH($L4,0)),IF(Dateinmonth($K4,U$3)=1,ROUNDDOWN($O4*(DAY(U$3)-DAY($K4)+1)/DAY(U$3),-3),IF(Dateinrange($K4,$L4,U$3)=1,$O4,0))) -> 14285000 | V4: =IF(Dateinmonth($L4,V$3)=1,$M4-$P4-SUMIFS($S4:$AD4,$S$3:$AD$3,"<>"&EOMONTH($L4,0)),IF(Dateinmonth($K4,V$3)=1,ROUNDDOWN($O4*(DAY(V$3)-DAY($K4)+1)/DAY(V$3),-3),IF(Dateinrange($K4,$L4,V$3)=1,$O4,0))) -> 14285000 | W4: =IF(Dateinmonth($L4,W$3)=1,$M4-$P4-SUMIFS($S4:$AD4,$S$3:$AD$3,"<>"&EOMONTH($L4,0)),IF(Dateinmonth($K4,W$3)=1,ROUNDDOWN($O4*(DAY(W$3)-DAY($K4)+1)/DAY(W$3),-3),IF(Dateinrange($K4,$L4,W$3)=1,$O4,0))) -> 14285000 | X4: =IF(Dateinmonth($L4,X$3)=1,$M4-$P4-SUMIFS($S4:$AD4,$S$3:$AD$3,"<>"&EOMONTH($L4,0)),IF(Dateinmonth($K4,X$3)=1,ROUNDDOWN($O4*(DAY(X$3)-DAY($K4)+1)/DAY(X$3),-3),IF(Dateinrange($K4,$L4,X$3)=1,$O4,0))) -> 14285000 | Y4: =IF(Dateinmonth($L4,Y$3)=1,$M4-$P4-SUMIFS($S4:$AD4,$S$3:$AD$3,"<>"&EOMONTH($L4,0)),IF(Dateinmonth($K4,Y$3)=1,ROUNDDOWN($O4*(DAY(Y$3)-DAY($K4)+1)/DAY(Y$3),-3),IF(Dateinrange($K4,$L4,Y$3)=1,$O4,0))) -> 14285000 | Z4: =IF(Dateinmonth($L4,Z$3)=1,$M4-$P4-SUMIFS($S4:$AD4,$S$3:$AD$3,"<>"&EOMONTH($L4,0)),IF(Dateinmonth($K4,Z$3)=1,ROUNDDOWN($O4*(DAY(Z$3)-DAY($K4)+1)/DAY(Z$3),-3),IF(Dateinrange($K4,$L4,Z$3)=1,$O4,0))) -> 14285000 | AA4: =IF(Dateinmonth($L4,AA$3)=1,$M4-$P4-SUMIFS($S4:$AD4,$S$3:$AD$3,"<>"&EOMONTH($L4,0)),IF(Dateinmonth($K4,AA$3)=1,ROUNDDOWN($O4*(DAY(AA$3)-DAY($K4)+1)/DAY(AA$3),-3),IF(Dateinrange($K4,$L4,AA$3)=1,$O4,0))) -> 2046000 | AB4: =IF(Dateinmonth($L4,AB$3)=1,$M4-$P4-SUMIFS($S4:$AD4,$S$3:$AD$3,"<>"&EOMONTH($L4,0)),IF(Dateinmonth($K4,AB$3)=1,ROUNDDOWN($O4*(DAY(AB$3)-DAY($K4)+1)/DAY(AB$3),-3),IF(Dateinrange($K4,$L4,AB$3)=1,$O4,0))) -> 0 | AC4: =IF(Dateinmonth($L4,AC$3)=1,$M4-$P4-SUMIFS($S4:$AD4,$S$3:$AD$3,"<>"&EOMONTH($L4,0)),IF(Dateinmonth($K4,AC$3)=1,ROUNDDOWN($O4*(DAY(AC$3)-DAY($K4)+1)/DAY(AC$3),-3),IF(Dateinrange($K4,$L4,AC$3)=1,$O4,0))) -> 0 | AD4: =IF(Dateinmonth($L4,AD$3)=1,$M4-$P4-SUMIFS($S4:$AD4,$S$3:$AD$3,"<>"&EOMONTH($L4,0)),IF(Dateinmonth($K4,AD$3)=1,ROUNDDOWN($O4*(DAY(AD$3)-DAY($K4)+1)/DAY(AD$3),-3),IF(Dateinrange($K4,$L4,AD$3)=1,$O4,0))) -> 0
F5: 641 | G5: 242 | H5: SAL | I5: =SUM(($S$3:$AD$3=$I$1)*$S5:$AD5) -> 1142000 | J5: B | K5: 2022-06-05 | L5: 2024-02-05 | M5: 24000000 | N5: =DATEDIF(K5,L5,"m")+1 -> 21 | O5: =ROUNDDOWN(M5/N5,-3) -> 1142000 | P5: 7841000 | Q5: =SUMIFS($S5:$AD5,$S$3:$AD$3,"<="&$I$1)+P5 -> 14693000 | R5: =M5-Q5 -> 9307000 | S5: =IF(Dateinmonth($L5,S$3)=1,$M5-$P5-SUMIFS($S5:$AD5,$S$3:$AD$3,"<>"&EOMONTH($L5,0)),IF(Dateinmonth($K5,S$3)=1,ROUNDDOWN($O5*(DAY(S$3)-DAY($K5)+1)/DAY(S$3),-3),IF(Dateinrange($K5,$L5,S$3)=1,$O5,0))) -> 1142000 | T5: =IF(Dateinmonth($L5,T$3)=1,$M5-$P5-SUMIFS($S5:$AD5,$S$3:$AD$3,"<>"&EOMONTH($L5,0)),IF(Dateinmonth($K5,T$3)=1,ROUNDDOWN($O5*(DAY(T$3)-DAY($K5)+1)/DAY(T$3),-3),IF(Dateinrange($K5,$L5,T$3)=1,$O5,0))) -> 1142000 | U5: =IF(Dateinmonth($L5,U$3)=1,$M5-$P5-SUMIFS($S5:$AD5,$S$3:$AD$3,"<>"&EOMONTH($L5,0)),IF(Dateinmonth($K5,U$3)=1,ROUNDDOWN($O5*(DAY(U$3)-DAY($K5)+1)/DAY(U$3),-3),IF(Dateinrange($K5,$L5,U$3)=1,$O5,0))) -> 1142000 | V5: =IF(Dateinmonth($L5,V$3)=1,$M5-$P5-SUMIFS($S5:$AD5,$S$3:$AD$3,"<>"&EOMONTH($L5,0)),IF(Dateinmonth($K5,V$3)=1,ROUNDDOWN($O5*(DAY(V$3)-DAY($K5)+1)/DAY(V$3),-3),IF(Dateinrange($K5,$L5,V$3)=1,$O5,0))) -> 1142000 | W5: =IF(Dateinmonth($L5,W$3)=1,$M5-$P5-SUMIFS($S5:$AD5,$S$3:$AD$3,"<>"&EOMONTH($L5,0)),IF(Dateinmonth($K5,W$3)=1,ROUNDDOWN($O5*(DAY(W$3)-DAY($K5)+1)/DAY(W$3),-3),IF(Dateinrange($K5,$L5,W$3)=1,$O5,0))) -> 1142000 | X5: =IF(Dateinmonth($L5,X$3)=1,$M5-$P5-SUMIFS($S5:$AD5,$S$3:$AD$3,"<>"&EOMONTH($L5,0)),IF(Dateinmonth($K5,X$3)=1,ROUNDDOWN($O5*(DAY(X$3)-DAY($K5)+1)/DAY(X$3),-3),IF(Dateinrange($K5,$L5,X$3)=1,$O5,0))) -> 1142000 | Y5: =IF(Dateinmonth($L5,Y$3)=1,$M5-$P5-SUMIFS($S5:$AD5,$S$3:$AD$3,"<>"&EOMONTH($L5,0)),IF(Dateinmonth($K5,Y$3)=1,ROUNDDOWN($O5*(DAY(Y$3)-DAY($K5)+1)/DAY(Y$3),-3),IF(Dateinrange($K5,$L5,Y$3)=1,$O5,0))) -> 1142000 | Z5: =IF(Dateinmonth($L5,Z$3)=1,$M5-$P5-SUMIFS($S5:$AD5,$S$3:$AD$3,"<>"&EOMONTH($L5,0)),IF(Dateinmonth($K5,Z$3)=1,ROUNDDOWN($O5*(DAY(Z$3)-DAY($K5)+1)/DAY(Z$3),-3),IF(Dateinrange($K5,$L5,Z$3)=1,$O5,0))) -> 1142000 | AA5: =IF(Dateinmonth($L5,AA$3)=1,$M5-$P5-SUMIFS($S5:$AD5,$S$3:$AD$3,"<>"&EOMONTH($L5,0)),IF(Dateinmonth($K5,AA$3)=1,ROUNDDOWN($O5*(DAY(AA$3)-DAY($K5)+1)/DAY(AA$3),-3),IF(Dateinrange($K5,$L5,AA$3)=1,$O5,0))) -> 1142000 | AB5: =IF(Dateinmonth($L5,AB$3)=1,$M5-$P5-SUMIFS($S5:$AD5,$S$3:$AD$3,"<>"&EOMONTH($L5,0)),IF(Dateinmonth($K5,AB$3)=1,ROUNDDOWN($O5*(DAY(AB$3)-DAY($K5)+1)/DAY(AB$3),-3),IF(Dateinrange($K5,$L5,AB$3)=1,$O5,0))) -> 1142000 | AC5: =IF(Dateinmonth($L5,AC$3)=1,$M5-$P5-SUMIFS($S5:$AD5,$S$3:$AD$3,"<>"&EOMONTH($L5,0)),IF(Dateinmonth($K5,AC$3)=1,ROUNDDOWN($O5*(DAY(AC$3)-DAY($K5)+1)/DAY(AC$3),-3),IF(Dateinrange($K5,$L5,AC$3)=1,$O5,0))) -> 1142000 | AD5: =IF(Dateinmonth($L5,AD$3)=1,$M5-$P5-SUMIFS($S5:$AD5,$S$3:$AD$3,"<>"&EOMONTH($L5,0)),IF(Dateinmonth($K5,AD$3)=1,ROUNDDOWN($O5*(DAY(AD$3)-DAY($K5)+1)/DAY(AD$3),-3),IF(Dateinrange($K5,$L5,AD$3)=1,$O5,0))) -> 1142000
F6: 627 | G6: 242 | H6: PRD | I6: =SUM(($S$3:$AD$3=$I$1)*$S6:$AD6) -> 0 | J6: C | K6: 2023-07-06 | L6: 2024-08-05 | M6: 130000000 | N6: =DATEDIF(K6,L6,"m")+1 -> 13 | O6: =ROUNDDOWN(M6/N6,-3) -> 10000000 | P6: 0 | Q6: =SUMIFS($S6:$AD6,$S$3:$AD$3,"<="&$I$1)+P6 -> 0 | R6: =M6-Q6 -> 130000000 | S6: =IF(Dateinmonth($L6,S$3)=1,$M6-$P6-SUMIFS($S6:$AD6,$S$3:$AD$3,"<>"&EOMONTH($L6,0)),IF(Dateinmonth($K6,S$3)=1,ROUNDDOWN($O6*(DAY(S$3)-DAY($K6)+1)/DAY(S$3),-3),IF(Dateinrange($K6,$L6,S$3)=1,$O6,0))) -> 0 | T6: =IF(Dateinmonth($L6,T$3)=1,$M6-$P6-SUMIFS($S6:$AD6,$S$3:$AD$3,"<>"&EOMONTH($L6,0)),IF(Dateinmonth($K6,T$3)=1,ROUNDDOWN($O6*(DAY(T$3)-DAY($K6)+1)/DAY(T$3),-3),IF(Dateinrange($K6,$L6,T$3)=1,$O6,0))) -> 0 | U6: =IF(Dateinmonth($L6,U$3)=1,$M6-$P6-SUMIFS($S6:$AD6,$S$3:$AD$3,"<>"&EOMONTH($L6,0)),IF(Dateinmonth($K6,U$3)=1,ROUNDDOWN($O6*(DAY(U$3)-DAY($K6)+1)/DAY(U$3),-3),IF(Dateinrange($K6,$L6,U$3)=1,$O6,0))) -> 0 | V6: =IF(Dateinmonth($L6,V$3)=1,$M6-$P6-SUMIFS($S6:$AD6,$S$3:$AD$3,"<>"&EOMONTH($L6,0)),IF(Dateinmonth($K6,V$3)=1,ROUNDDOWN($O6*(DAY(V$3)-DAY($K6)+1)/DAY(V$3),-3),IF(Dateinrange($K6,$L6,V$3)=1,$O6,0))) -> 0 | W6: =IF(Dateinmonth($L6,W$3)=1,$M6-$P6-SUMIFS($S6:$AD6,$S$3:$AD$3,"<>"&EOMONTH($L6,0)),IF(Dateinmonth($K6,W$3)=1,ROUNDDOWN($O6*(DAY(W$3)-DAY($K6)+1)/DAY(W$3),-3),IF(Dateinrange($K6,$L6,W$3)=1,$O6,0))) -> 0 | X6: =IF(Dateinmonth($L6,X$3)=1,$M6-$P6-SUMIFS($S6:$AD6,$S$3:$AD$3,"<>"&EOMONTH($L6,0)),IF(Dateinmonth($K6,X$3)=1,ROUNDDOWN($O6*(DAY(X$3)-DAY($K6)+1)/DAY(X$3),-3),IF(Dateinrange($K6,$L6,X$3)=1,$O6,0))) -> 0 | Y6: =IF(Dateinmonth($L6,Y$3)=1,$M6-$P6-SUMIFS($S6:$AD6,$S$3:$AD$3,"<>"&EOMONTH($L6,0)),IF(Dateinmonth($K6,Y$3)=1,ROUNDDOWN($O6*(DAY(Y$3)-DAY($K6)+1)/DAY(Y$3),-3),IF(Dateinrange($K6,$L6,Y$3)=1,$O6,0))) -> 8387000 | Z6: =IF(Dateinmonth($L6,Z$3)=1,$M6-$P6-SUMIFS($S6:$AD6,$S$3:$AD$3,"<>"&EOMONTH($L6,0)),IF(Dateinmonth($K6,Z$3)=1,ROUNDDOWN($O6*(DAY(Z$3)-DAY($K6)+1)/DAY(Z$3),-3),IF(Dateinrange($K6,$L6,Z$3)=1,$O6,0))) -> 10000000 | AA6: =IF(Dateinmonth($L6,AA$3)=1,$M6-$P6-SUMIFS($S6:$AD6,$S$3:$AD$3,"<>"&EOMONTH($L6,0)),IF(Dateinmonth($K6,AA$3)=1,ROUNDDOWN($O6*(DAY(AA$3)-DAY($K6)+1)/DAY(AA$3),-3),IF(Dateinrange($K6,$L6,AA$3)=1,$O6,0))) -> 10000000 | AB6: =IF(Dateinmonth($L6,AB$3)=1,$M6-$P6-SUMIFS($S6:$AD6,$S$3:$AD$3,"<>"&EOMONTH($L6,0)),IF(Dateinmonth($K6,AB$3)=1,ROUNDDOWN($O6*(DAY(AB$3)-DAY($K6)+1)/DAY(AB$3),-3),IF(Dateinrange($K6,$L6,AB$3)=1,$O6,0))) -> 10000000 | AC6: =IF(Dateinmonth($L6,AC$3)=1,$M6-$P6-SUMIFS($S6:$AD6,$S$3:$AD$3,"<>"&EOMONTH($L6,0)),IF(Dateinmonth($K6,AC$3)=1,ROUNDDOWN($O6*(DAY(AC$3)-DAY($K6)+1)/DAY(AC$3),-3),IF(Dateinrange($K6,$L6,AC$3)=1,$O6,0))) -> 10000000 | AD6: =IF(Dateinmonth($L6,AD$3)=1,$M6-$P6-SUMIFS($S6:$AD6,$S$3:$AD$3,"<>"&EOMONTH($L6,0)),IF(Dateinmonth($K6,AD$3)=1,ROUNDDOWN($O6*(DAY(AD$3)-DAY($K6)+1)/DAY(AD$3),-3),IF(Dateinrange($K6,$L6,AD$3)=1,$O6,0))) -> 10000000
A7: Insert above this red line | F7: Insert above this red line
F8: Total | I8: =SUM(I4:I7) -> 15427000 | M8: =SUM(M4:M7) -> 254000000 | O8: =SUM(O4:O7) -> 25427000 | P8: =SUM(P4:P7) -> 7841000 | Q8: =SUM(Q4:Q7) -> 84077000 | R8: =SUM(R4:R7) -> 169923000 | S8: =SUM(S4:S7) -> 1142000 | T8: 13386000 | U8: 15427000 | V8: 15427000 | W8: 15427000 | X8: 15427000 | Y8: 23814000 | Z8: 25427000 | AA8: 13188000 | AB8: 11142000 | AC8: 11142000 | AD8: 11142000
O10: Manually filled | Q10: Book to System
O12: Reconciliation
P13: Amt
O14: Total Org | P14: =M8 -> 254000000
O15: Detail | P15: =Q8+R8 -> 254000000
O16: Diff | P16: =P15-P14 -> 0 | Q16: **must be 0
P17: Amt
O18: Excel | P18: =R8 -> 169923000
O19: TB balance | P19: 185350000 | Q19: Acc 242
O20: Diff | P20: =P19-P18 -> 15427000 | Q20: **must be 0

Sheet 211

Sheet 341

Sheet 3387
